[Event "*** Titled Tuesday Blitz"]
[Site "Chess.com"]
[Date "2020.11.10"]
[Round "5"]
[White "PawnEatingZombie"]
[Black "Flutaga"]
[Result "1-0"]
[WhiteElo "2171"]
[BlackElo "1948"]
[TimeControl "180+1"]
[EndTime "10:58:48 PST"]
[Termination "PawnEatingZombie won on time"]

1. d4 {[%clk 0:03:00.9]} 1... f5 {[%clk 0:02:46.6]} 2. Nc3 {[%clk 0:02:59.8]}
2... Nf6 {[%clk 0:02:43.2]} 3. Bg5 {[%clk 0:02:59.7]} 3... d5 {[%clk 0:02:35.6]}
4. Bxf6 {[%clk 0:02:58.9]} 4... exf6 {[%clk 0:02:32.2]} 5. e3 {[%clk 0:02:59.8]}
5... Be6 {[%clk 0:02:30.3]} 6. Qf3 {[%clk 0:02:59.2]} 6... Qd7 {[%clk
0:02:27.9]} 7. Bb5 {[%clk 0:02:58]} 7... c6 {[%clk 0:02:21]} 8. Bd3 {[%clk
0:02:57.2]} 8... Bb4 {[%clk 0:02:17.7]} 9. Ne2 {[%clk 0:02:56.8]} 9... g6 {[%clk
0:02:16.1]} 10. h3 {[%clk 0:02:55.5]} 10... Na6 {[%clk 0:02:14]} 11. a3 {[%clk
0:02:53.8]} 11... Bd6 {[%clk 0:02:07.9]} 12. Nf4 {[%clk 0:02:50.4]} 12... Bf7
{[%clk 0:01:57.2]} 13. g4 {[%clk 0:02:30.7]} 13... fxg4 {[%clk 0:01:46.8]} 14.
hxg4 {[%clk 0:02:31.6]} 14... Nc7 {[%clk 0:01:29.5]} 15. O-O-O {[%clk
0:02:28.3]} 15... O-O-O {[%clk 0:01:22.7]} 16. Rh6 {[%clk 0:02:19.4]} 16... Ne6
{[%clk 0:01:04.9]} 17. Nfe2 {[%clk 0:02:08.3]} 17... Qe7 {[%clk 0:00:46.3]} 18.
Rdh1 {[%clk 0:02:06.2]} 18... Ng5 {[%clk 0:00:44.4]} 19. Qg2 {[%clk 0:02:04.4]}
19... Qe6 {[%clk 0:00:32.4]} 20. Nd1 {[%clk 0:01:51.4]} 20... Bf8 {[%clk
0:00:09.5]} 21. R6h4 {[%clk 0:01:44.8]} 21... h5 {[%clk 0:00:08.5]} 22. Nf4
{[%clk 0:01:32.1]} 22... Qd6 {[%clk 0:00:07.3]} 23. Bxg6 {[%clk 0:01:23.6]}
23... Bxg6 {[%clk 0:00:05.1]} 24. Nxg6 {[%clk 0:01:23.6]} 24... Rg8 {[%clk
0:00:04.8]} 25. Nxf8 {[%clk 0:01:22.4]} 25... Rdxf8 {[%clk 0:00:04.3]} 26. Rxh5
{[%clk 0:01:20.6]} 26... Ne4 {[%clk 0:00:03.9]} 27. Rh7 {[%clk 0:01:08.5]} 27...
c5 {[%clk 0:00:03.6]} 28. Qh2 {[%clk 0:00:41.9]} 28... Qxh2 {[%clk 0:00:02.2]}
29. R1xh2 {[%clk 0:00:41.4]} 29... cxd4 {[%clk 0:00:03.1]} 30. exd4 {[%clk
0:00:42]} 30... Re8 {[%clk 0:00:03]} 31. f4 {[%clk 0:00:33.2]} 31... f5 {[%clk
0:00:02.6]} 32. g5 {[%clk 0:00:32.7]} 32... Nd6 {[%clk 0:00:02.8]} 33. Nc3
{[%clk 0:00:23.4]} 33... Ne4 {[%clk 0:00:02.5]} 34. Nxd5 {[%clk 0:00:22.2]}
34... Nd6 {[%clk 0:00:01.9]} 35. b3 {[%clk 0:00:20.4]} 35... Re4 {[%clk
0:00:01.6]} 36. Ne7+ {[%clk 0:00:18.9]} 1-0

[Event "*** Titled Tuesday Blitz"]
[Site "Chess.com"]
[Date "2020.11.10"]
[Round "5"]
[White "novocane"]
[Black "amiralfio"]
[Result "0-1"]
[WhiteElo "2280"]
[BlackElo "2523"]
[TimeControl "180+1"]
[EndTime "10:58:53 PST"]
[Termination "amiralfio won on time"]

1. d4 {[%clk 0:03:00]} 1... d5 {[%clk 0:02:57.6]} 2. c4 {[%clk 0:02:59.4]} 2...
c6 {[%clk 0:02:56.9]} 3. cxd5 {[%clk 0:02:59.6]} 3... cxd5 {[%clk 0:02:56.7]} 4.
Bf4 {[%clk 0:02:59.8]} 4... Nc6 {[%clk 0:02:56]} 5. e3 {[%clk 0:02:59.5]} 5...
e5 {[%clk 0:02:54.4]} 6. Bxe5 {[%clk 0:02:46.8]} 6... Bb4+ {[%clk 0:02:47]} 7.
Nc3 {[%clk 0:02:42]} 7... Nxe5 {[%clk 0:02:47]} 8. dxe5 {[%clk 0:02:40.9]} 8...
Ne7 {[%clk 0:02:45.5]} 9. Bb5+ {[%clk 0:02:11.1]} 9... Bd7 {[%clk 0:02:39.7]}
10. Bxd7+ {[%clk 0:01:58.7]} 10... Qxd7 {[%clk 0:02:40.6]} 11. Ne2 {[%clk
0:01:58.6]} 11... O-O {[%clk 0:02:29]} 12. O-O {[%clk 0:01:57.4]} 12... Rfd8
{[%clk 0:02:20]} 13. a3 {[%clk 0:01:48.2]} 13... Ba5 {[%clk 0:02:14.3]} 14. Rc1
{[%clk 0:01:44]} 14... Qe6 {[%clk 0:02:06.3]} 15. f4 {[%clk 0:01:41.1]} 15...
Nf5 {[%clk 0:01:59.8]} 16. Nd4 {[%clk 0:01:39.7]} 16... Qg6 {[%clk 0:01:57.4]}
17. Nxf5 {[%clk 0:01:32.4]} 17... Qxf5 {[%clk 0:01:55]} 18. Nxd5 {[%clk
0:01:16.9]} 18... Qe4 {[%clk 0:01:43]} 19. Nf6+ {[%clk 0:00:23.7]} 19... gxf6
{[%clk 0:01:41.1]} 20. Qg4+ {[%clk 0:00:21.8]} 20... Kh8 {[%clk 0:01:41.1]} 21.
exf6 {[%clk 0:00:19.6]} 21... Rg8 {[%clk 0:01:38.7]} 22. Qh3 {[%clk 0:00:20]}
22... Bd2 {[%clk 0:01:34.2]} 23. Rc7 {[%clk 0:00:15.2]} 23... Qxe3+ {[%clk
0:01:18.3]} 24. Qxe3 {[%clk 0:00:15]} 24... Bxe3+ {[%clk 0:01:19.2]} 25. Kh1
{[%clk 0:00:15.9]} 25... Rgf8 {[%clk 0:01:04.2]} 26. Rxb7 {[%clk 0:00:15.5]}
26... Rac8 {[%clk 0:00:57]} 27. g3 {[%clk 0:00:15.8]} 27... Rc2 {[%clk
0:00:55.2]} 28. Re1 {[%clk 0:00:16.3]} 28... Bb6 {[%clk 0:00:53.3]} 29. Ree7
{[%clk 0:00:16.5]} 29... Kg8 {[%clk 0:00:43.6]} 30. b4 {[%clk 0:00:14.8]} 30...
Rd8 {[%clk 0:00:35]} 31. Re1 {[%clk 0:00:09.9]} 31... h5 {[%clk 0:00:29.9]} 32.
a4 {[%clk 0:00:09.5]} 32... Rdd2 {[%clk 0:00:24.4]} 33. Re8+ {[%clk 0:00:07.9]}
33... Kh7 {[%clk 0:00:24]} 34. Rxf7+ {[%clk 0:00:08.8]} 34... Kg6 {[%clk
0:00:24.4]} 35. Rg7+ {[%clk 0:00:05.4]} 35... Kxf6 {[%clk 0:00:24.4]} 0-1

[Event "*** Titled Tuesday Blitz"]
[Site "Chess.com"]
[Date "2020.11.10"]
[Round "5"]
[White "youngKID"]
[Black "SantoBlue"]
[Result "0-1"]
[WhiteElo "2833"]
[BlackElo "2925"]
[TimeControl "180+1"]
[EndTime "10:58:56 PST"]
[Termination "SantoBlue won by resignation"]

1. e4 {[%clk 0:03:00.9]} 1... c5 {[%clk 0:02:55.9]} 2. Nf3 {[%clk 0:03:00.5]}
2... Nc6 {[%clk 0:02:55.9]} 3. Bb5 {[%clk 0:02:58.9]} 3... g6 {[%clk 0:02:55.1]}
4. O-O {[%clk 0:02:57.5]} 4... Bg7 {[%clk 0:02:54.3]} 5. Re1 {[%clk 0:02:57.6]}
5... e5 {[%clk 0:02:54]} 6. Bxc6 {[%clk 0:02:54.3]} 6... dxc6 {[%clk 0:02:52.6]}
7. d3 {[%clk 0:02:52.9]} 7... Qe7 {[%clk 0:02:46.8]} 8. a3 {[%clk 0:02:50.3]}
8... Nf6 {[%clk 0:02:44.8]} 9. b4 {[%clk 0:02:46.9]} 9... O-O {[%clk 0:02:43.7]}
10. bxc5 {[%clk 0:02:39.8]} 10... Qxc5 {[%clk 0:02:42.3]} 11. a4 {[%clk
0:02:36.5]} 11... Qe7 {[%clk 0:02:31.9]} 12. Ba3 {[%clk 0:02:26.5]} 12... c5
{[%clk 0:02:31.6]} 13. Nbd2 {[%clk 0:02:10.7]} 13... b6 {[%clk 0:02:26]} 14. a5
{[%clk 0:02:08]} 14... Ba6 {[%clk 0:02:19.7]} 15. axb6 {[%clk 0:01:57.7]} 15...
axb6 {[%clk 0:02:19.5]} 16. Qb1 {[%clk 0:01:42.1]} 16... Rfb8 {[%clk 0:02:14.6]}
17. Nf1 {[%clk 0:01:12.9]} 17... Nh5 {[%clk 0:02:09.8]} 18. Ne3 {[%clk
0:01:09.3]} 18... Nf4 {[%clk 0:02:07.1]} 19. Bb2 {[%clk 0:00:57.6]} 19... f6
{[%clk 0:01:39.2]} 20. c4 {[%clk 0:00:35]} 20... b5 {[%clk 0:01:26.3]} 21. Nd5
{[%clk 0:00:34.9]} 21... Nxd5 {[%clk 0:01:25.5]} 22. cxd5 {[%clk 0:00:31.7]}
22... Bh6 {[%clk 0:01:23.5]} 23. Bc1 {[%clk 0:00:26.5]} 23... Bf8 {[%clk
0:01:21.4]} 24. Be3 {[%clk 0:00:23.8]} 24... c4 {[%clk 0:01:18.6]} 25. d4 {[%clk
0:00:22.1]} 25... b4 {[%clk 0:01:06.6]} 26. dxe5 {[%clk 0:00:20.6]} 26... fxe5
{[%clk 0:01:07.5]} 27. Bg5 {[%clk 0:00:16]} 27... Qd6 {[%clk 0:01:06.8]} 28. Rc1
{[%clk 0:00:09]} 28... c3 {[%clk 0:01:06.1]} 29. Qb3 {[%clk 0:00:09.1]} 29...
Rc8 {[%clk 0:00:59.6]} 30. Ne1 {[%clk 0:00:05.3]} 30... Rab8 {[%clk 0:00:46.1]}
31. Be3 {[%clk 0:00:03]} 31... Bc4 {[%clk 0:00:45.5]} 32. Qc2 {[%clk 0:00:03.3]}
32... b3 {[%clk 0:00:44.2]} 33. Qxc3 {[%clk 0:00:03.7]} 33... b2 {[%clk
0:00:44.9]} 34. Rab1 {[%clk 0:00:02.5]} 34... bxc1=Q {[%clk 0:00:44.4]} 35. Rxc1
{[%clk 0:00:02.8]} 35... Ba6 {[%clk 0:00:39.6]} 36. Qd2 {[%clk 0:00:03.1]} 36...
Rxc1 {[%clk 0:00:39]} 37. Qxc1 {[%clk 0:00:04]} 37... Rc8 {[%clk 0:00:37.7]} 38.
Qa1 {[%clk 0:00:02.6]} 38... Qb4 {[%clk 0:00:30.8]} 39. Qxa6 {[%clk 0:00:01.7]}
39... Qxe1+ {[%clk 0:00:30.2]} 0-1

[Event "*** Titled Tuesday Blitz"]
[Site "Chess.com"]
[Date "2020.11.10"]
[Round "5"]
[White "Onischuk_V"]
[Black "Chernobay_Artem"]
[Result "0-1"]
[WhiteElo "2855"]
[BlackElo "2641"]
[TimeControl "180+1"]
[EndTime "10:59:01 PST"]
[Termination "Chernobay_Artem won on time"]

1. e4 {[%clk 0:02:55.5]} 1... c5 {[%clk 0:02:59.2]} 2. Nf3 {[%clk 0:02:53.5]}
2... d6 {[%clk 0:02:59.1]} 3. d4 {[%clk 0:02:53.1]} 3... cxd4 {[%clk 0:02:59.2]}
4. Nxd4 {[%clk 0:02:53.8]} 4... Nf6 {[%clk 0:02:59]} 5. Nc3 {[%clk 0:02:54.5]}
5... Nc6 {[%clk 0:02:58.4]} 6. g3 {[%clk 0:02:53.5]} 6... Bd7 {[%clk 0:02:38.5]}
7. Bg2 {[%clk 0:02:52.7]} 7... g6 {[%clk 0:02:34.9]} 8. O-O {[%clk 0:02:52.6]}
8... Bg7 {[%clk 0:02:34.4]} 9. Nb3 {[%clk 0:02:52.6]} 9... O-O {[%clk
0:02:31.9]} 10. h3 {[%clk 0:02:52.3]} 10... a6 {[%clk 0:02:24.5]} 11. a4 {[%clk
0:02:42.9]} 11... Rc8 {[%clk 0:02:20.7]} 12. Re1 {[%clk 0:02:41.7]} 12... Ne5
{[%clk 0:02:06.4]} 13. Nd5 {[%clk 0:02:07]} 13... Be6 {[%clk 0:01:34.5]} 14. Nd4
{[%clk 0:02:00.9]} 14... Bd7 {[%clk 0:01:27.3]} 15. c3 {[%clk 0:01:58.8]} 15...
e6 {[%clk 0:01:08.3]} 16. Nxf6+ {[%clk 0:01:55.5]} 16... Bxf6 {[%clk 0:01:08.8]}
17. Bh6 {[%clk 0:01:43.1]} 17... Bg7 {[%clk 0:01:08.8]} 18. Bxg7 {[%clk
0:01:42]} 18... Kxg7 {[%clk 0:01:09.7]} 19. Nc2 {[%clk 0:01:17.8]} 19... Qb6
{[%clk 0:01:05.3]} 20. Ne3 {[%clk 0:01:09.7]} 20... Rfd8 {[%clk 0:00:39.3]} 21.
Re2 {[%clk 0:00:54.2]} 21... Bc6 {[%clk 0:00:35.9]} 22. a5 {[%clk 0:00:50.8]}
22... Qc5 {[%clk 0:00:32.3]} 23. Rd2 {[%clk 0:00:44.7]} 23... h5 {[%clk
0:00:25.4]} 24. Rd4 {[%clk 0:00:43.7]} 24... h4 {[%clk 0:00:25]} 25. g4 {[%clk
0:00:32]} 25... g5 {[%clk 0:00:19.6]} 26. Qd2 {[%clk 0:00:24.9]} 26... Ng6
{[%clk 0:00:19.3]} 27. Nc4 {[%clk 0:00:20.7]} 27... e5 {[%clk 0:00:16.2]} 28. b4
{[%clk 0:00:15.7]} 28... Qa7 {[%clk 0:00:14.2]} 29. Rxd6 {[%clk 0:00:14.5]}
29... Qb8 {[%clk 0:00:09.3]} 30. Rd1 {[%clk 0:00:11.5]} 30... Rxd6 {[%clk
0:00:09.1]} 31. Nxd6 {[%clk 0:00:11.3]} 31... Nf4 {[%clk 0:00:08.4]} 32. Nxc8
{[%clk 0:00:08.4]} 32... Qxc8 {[%clk 0:00:08.4]} 33. Qd6 {[%clk 0:00:08.9]}
33... f6 {[%clk 0:00:07.4]} 34. Qe7+ {[%clk 0:00:08.3]} 34... Kg6 {[%clk
0:00:07.4]} 35. Rd8 {[%clk 0:00:08]} 35... Qe6 {[%clk 0:00:07.6]} 0-1

[Event "*** Titled Tuesday Blitz"]
[Site "Chess.com"]
[Date "2020.11.10"]
[Round "5"]
[White "Obito24"]
[Black "Nikolakis2014"]
[Result "0-1"]
[WhiteElo "2583"]
[BlackElo "2765"]
[TimeControl "180+1"]
[EndTime "10:59:03 PST"]
[Termination "Nikolakis2014 won by resignation"]

1. e4 {[%clk 0:03:00.9]} 1... c6 {[%clk 0:03:00.1]} 2. d4 {[%clk 0:03:00.5]}
2... d5 {[%clk 0:03:00.2]} 3. Nc3 {[%clk 0:03:01]} 3... dxe4 {[%clk 0:02:59.8]}
4. Nxe4 {[%clk 0:02:59.7]} 4... Nf6 {[%clk 0:02:59.7]} 5. Nxf6+ {[%clk
0:02:58.9]} 5... exf6 {[%clk 0:02:59.9]} 6. Be3 {[%clk 0:02:58.6]} 6... Bd6
{[%clk 0:02:56.9]} 7. Bd3 {[%clk 0:02:57.4]} 7... O-O {[%clk 0:02:54.2]} 8. Qd2
{[%clk 0:02:57.2]} 8... Re8 {[%clk 0:02:52.3]} 9. O-O-O {[%clk 0:02:56.1]} 9...
Be6 {[%clk 0:02:48.3]} 10. Kb1 {[%clk 0:02:52.7]} 10... b5 {[%clk 0:02:48.3]}
11. Ne2 {[%clk 0:02:45.3]} 11... Na6 {[%clk 0:02:47.2]} 12. c3 {[%clk
0:02:35.3]} 12... Nc7 {[%clk 0:02:45.3]} 13. Ng3 {[%clk 0:02:29.3]} 13... Nd5
{[%clk 0:02:41.6]} 14. Rhe1 {[%clk 0:02:23.5]} 14... Rb8 {[%clk 0:02:32.6]} 15.
Ne4 {[%clk 0:02:19]} 15... Be7 {[%clk 0:01:55.1]} 16. f4 {[%clk 0:02:00.9]}
16... f5 {[%clk 0:01:44.2]} 17. Nc5 {[%clk 0:01:49.4]} 17... b4 {[%clk
0:01:32.5]} 18. c4 {[%clk 0:01:46]} 18... Nc3+ {[%clk 0:01:31.4]} 19. Ka1 {[%clk
0:01:36.6]} 19... Qa5 {[%clk 0:01:03]} 20. b3 {[%clk 0:00:48.9]} 20... Bf6
{[%clk 0:00:42.6]} 21. Na4 {[%clk 0:00:35.5]} 21... Nxa4 {[%clk 0:00:31]} 22.
bxa4 {[%clk 0:00:36.4]} 22... Qxa4 {[%clk 0:00:31.2]} 23. Qb2 {[%clk 0:00:28.3]}
23... b3 {[%clk 0:00:27.6]} 24. Rc1 {[%clk 0:00:26.1]} 24... Rb4 {[%clk
0:00:19.4]} 25. a3 {[%clk 0:00:14.7]} 25... Rbb8 {[%clk 0:00:18.4]} 26. Red1
{[%clk 0:00:12.1]} 26... h6 {[%clk 0:00:18.6]} 27. Bf2 {[%clk 0:00:12.2]} 27...
c5 {[%clk 0:00:18.5]} 28. Kb1 {[%clk 0:00:11.7]} 28... Red8 {[%clk 0:00:18.4]}
29. Bf1 {[%clk 0:00:09.1]} 29... cxd4 {[%clk 0:00:18.5]} 30. Bd3 {[%clk
0:00:08.4]} 30... Be7 {[%clk 0:00:17.1]} 31. c5 {[%clk 0:00:06]} 31... Rbc8
{[%clk 0:00:14.2]} 32. Re1 {[%clk 0:00:02.9]} 32... Rxc5 {[%clk 0:00:13.7]} 33.
Rxc5 {[%clk 0:00:01.6]} 33... Bxc5 {[%clk 0:00:13.6]} 34. Re2 {[%clk 0:00:02.4]}
34... Bxa3 {[%clk 0:00:13.2]} 35. g4 {[%clk 0:00:02.7]} 0-1

[Event "*** Titled Tuesday Blitz"]
[Site "Chess.com"]
[Date "2020.11.10"]
[Round "5"]
[White "smartinusa"]
[Black "Msb2"]
[Result "0-1"]
[WhiteElo "2631"]
[BlackElo "2897"]
[TimeControl "180+1"]
[EndTime "10:59:06 PST"]
[Termination "Msb2 won by resignation"]

1. d4 {[%clk 0:03:00.9]} 1... Nf6 {[%clk 0:02:59.5]} 2. c4 {[%clk 0:03:00.5]}
2... e6 {[%clk 0:03:00.1]} 3. Nf3 {[%clk 0:03:00.4]} 3... d5 {[%clk 0:03:00]} 4.
Nc3 {[%clk 0:03:00.5]} 4... Bb4 {[%clk 0:02:59.8]} 5. Qa4+ {[%clk 0:02:59.8]}
5... Nc6 {[%clk 0:02:59.3]} 6. e3 {[%clk 0:02:59.7]} 6... O-O {[%clk 0:02:59.7]}
7. Qc2 {[%clk 0:02:59.5]} 7... b6 {[%clk 0:02:57]} 8. Be2 {[%clk 0:02:55.3]}
8... dxc4 {[%clk 0:02:48.9]} 9. Bxc4 {[%clk 0:02:54.6]} 9... Bb7 {[%clk
0:02:48.5]} 10. O-O {[%clk 0:02:52.9]} 10... Ne7 {[%clk 0:02:48]} 11. a3 {[%clk
0:02:44.3]} 11... Bxc3 {[%clk 0:02:45.7]} 12. bxc3 {[%clk 0:02:45.2]} 12... c5
{[%clk 0:02:43.7]} 13. Bd3 {[%clk 0:02:42]} 13... Rc8 {[%clk 0:02:41.2]} 14. Qe2
{[%clk 0:02:41.4]} 14... Qd5 {[%clk 0:02:27.7]} 15. c4 {[%clk 0:02:37.8]} 15...
Qh5 {[%clk 0:02:24]} 16. Bb2 {[%clk 0:02:37.1]} 16... cxd4 {[%clk 0:02:21.7]}
17. Nxd4 {[%clk 0:02:21.3]} 17... Qxe2 {[%clk 0:02:18.8]} 18. Bxe2 {[%clk
0:02:22.2]} 18... Rfd8 {[%clk 0:02:13.6]} 19. Rfd1 {[%clk 0:02:21.1]} 19... Ne4
{[%clk 0:02:13]} 20. Nb5 {[%clk 0:02:18.8]} 20... a6 {[%clk 0:02:12.9]} 21. Nc3
{[%clk 0:02:10.7]} 21... Nc5 {[%clk 0:02:11.5]} 22. Rxd8+ {[%clk 0:02:01.2]}
22... Rxd8 {[%clk 0:02:08.7]} 23. Rd1 {[%clk 0:02:01.6]} 23... Rxd1+ {[%clk
0:02:08.6]} 24. Bxd1 {[%clk 0:02:02.5]} 24... f6 {[%clk 0:02:04.8]} 25. Na4
{[%clk 0:01:59.1]} 25... Nxa4 {[%clk 0:01:56.5]} 26. Bxa4 {[%clk 0:02:00]} 26...
e5 {[%clk 0:01:57.4]} 27. f4 {[%clk 0:01:51.3]} 27... exf4 {[%clk 0:01:34.1]}
28. exf4 {[%clk 0:01:50.6]} 28... Nf5 {[%clk 0:01:32.5]} 29. Kf2 {[%clk
0:01:49.9]} 29... Kf8 {[%clk 0:01:30.7]} 30. Bc2 {[%clk 0:01:32.7]} 30... Nd6
{[%clk 0:01:29.5]} 31. Bxh7 {[%clk 0:01:20.9]} 31... Nxc4 {[%clk 0:01:25.3]} 32.
Bc1 {[%clk 0:01:21]} 32... b5 {[%clk 0:01:03.5]} 33. Bd3 {[%clk 0:01:17.9]}
33... Nd6 {[%clk 0:01:02.6]} 34. g4 {[%clk 0:01:10.6]} 34... Ke7 {[%clk
0:01:02]} 35. h4 {[%clk 0:01:09.9]} 35... Be4 {[%clk 0:01:02.2]} 36. Be2 {[%clk
0:01:06.3]} 36... Bd5 {[%clk 0:00:55.5]} 37. h5 {[%clk 0:01:02.6]} 37... a5
{[%clk 0:00:55.8]} 38. g5 {[%clk 0:00:59.6]} 38... b4 {[%clk 0:00:51]} 39. axb4
{[%clk 0:00:57.9]} 39... axb4 {[%clk 0:00:51.9]} 40. h6 {[%clk 0:00:49]} 40...
gxh6 {[%clk 0:00:51.2]} 41. gxh6 {[%clk 0:00:49]} 41... Kf7 {[%clk 0:00:50.7]}
42. Bh5+ {[%clk 0:00:44.9]} 42... Kg8 {[%clk 0:00:49.5]} 43. Bb2 {[%clk
0:00:42.7]} 43... Kh7 {[%clk 0:00:47.4]} 44. Bf3 {[%clk 0:00:14.9]} 44... Bxf3
{[%clk 0:00:45.2]} 45. Kxf3 {[%clk 0:00:15.8]} 45... f5 {[%clk 0:00:46.1]} 46.
Be5 {[%clk 0:00:12.4]} 46... Nc4 {[%clk 0:00:45.6]} 47. Bg7 {[%clk 0:00:10.3]}
47... b3 {[%clk 0:00:45.3]} 48. Ke2 {[%clk 0:00:05.3]} 48... b2 {[%clk
0:00:44.2]} 49. Bxb2 {[%clk 0:00:05.4]} 49... Nxb2 {[%clk 0:00:45.1]} 50. Ke3
{[%clk 0:00:06.3]} 50... Kxh6 {[%clk 0:00:45.6]} 51. Kd4 {[%clk 0:00:07.2]}
51... Kh5 {[%clk 0:00:46.2]} 52. Ke5 {[%clk 0:00:08.1]} 52... Kg4 {[%clk
0:00:46.6]} 0-1

[Event "*** Titled Tuesday Blitz"]
[Site "Chess.com"]
[Date "2020.11.10"]
[Round "5"]
[White "Sueetin"]
[Black "Alomaterapia"]
[Result "1-0"]
[WhiteElo "2301"]
[BlackElo "2476"]
[TimeControl "180+1"]
[EndTime "10:59:06 PST"]
[Termination "Sueetin won by resignation"]

1. c4 {[%clk 0:03:00.9]} 1... e5 {[%clk 0:02:59.2]} 2. g3 {[%clk 0:02:59.8]}
2... Nc6 {[%clk 0:02:58.4]} 3. Bg2 {[%clk 0:02:56]} 3... Bc5 {[%clk 0:02:57.4]}
4. Nc3 {[%clk 0:02:53.4]} 4... d6 {[%clk 0:02:55.1]} 5. Nf3 {[%clk 0:02:51.4]}
5... Nf6 {[%clk 0:02:53]} 6. O-O {[%clk 0:02:47.6]} 6... a6 {[%clk 0:02:52.5]}
7. d3 {[%clk 0:02:45.7]} 7... h6 {[%clk 0:02:52.3]} 8. a3 {[%clk 0:02:44.6]}
8... O-O {[%clk 0:02:51.7]} 9. b4 {[%clk 0:02:44.5]} 9... Ba7 {[%clk 0:02:51.7]}
10. Bb2 {[%clk 0:02:44.4]} 10... Bf5 {[%clk 0:02:40]} 11. e3 {[%clk 0:02:28.8]}
11... Qd7 {[%clk 0:02:33.2]} 12. d4 {[%clk 0:01:54]} 12... exd4 {[%clk
0:02:32.8]} 13. exd4 {[%clk 0:01:54.2]} 13... Bh3 {[%clk 0:02:12.4]} 14. Re1
{[%clk 0:01:42]} 14... Bxg2 {[%clk 0:02:11.1]} 15. Kxg2 {[%clk 0:01:42.9]} 15...
Rfe8 {[%clk 0:02:11.1]} 16. Qd2 {[%clk 0:01:37.1]} 16... Ne7 {[%clk 0:02:09.3]}
17. Ne4 {[%clk 0:01:24.5]} 17... Nxe4 {[%clk 0:02:04.8]} 18. Rxe4 {[%clk
0:01:25.4]} 18... d5 {[%clk 0:02:02.2]} 19. cxd5 {[%clk 0:01:20.5]} 19... Nxd5
{[%clk 0:02:00.5]} 20. Ne5 {[%clk 0:01:17.9]} 20... Qf5 {[%clk 0:01:52.2]} 21.
Re2 {[%clk 0:00:51.9]} 21... f6 {[%clk 0:01:34.1]} 22. Nd3 {[%clk 0:00:45.6]}
22... Rxe2 {[%clk 0:01:13.3]} 23. Qxe2 {[%clk 0:00:46.5]} 23... Rd8 {[%clk
0:01:10.3]} 24. Nc5 {[%clk 0:00:44]} 24... Qc8 {[%clk 0:00:26]} 25. Re1 {[%clk
0:00:41.4]} 25... Kh8 {[%clk 0:00:25.9]} 26. Qh5 {[%clk 0:00:38.5]} 26... c6
{[%clk 0:00:21.6]} 27. Bc1 {[%clk 0:00:29.2]} 27... Kh7 {[%clk 0:00:18.3]} 28.
h4 {[%clk 0:00:11.9]} 28... b6 {[%clk 0:00:17.3]} 29. Ne6 {[%clk 0:00:08.8]}
29... Rd7 {[%clk 0:00:16.4]} 30. Qf5+ {[%clk 0:00:07.9]} 30... Kg8 {[%clk
0:00:15.3]} 31. Qg6 {[%clk 0:00:07.9]} 31... Re7 {[%clk 0:00:09]} 32. Bxh6
{[%clk 0:00:07.1]} 32... Qd7 {[%clk 0:00:08.4]} 33. Nxg7 {[%clk 0:00:06.3]}
33... Rxe1 {[%clk 0:00:07.8]} 34. Ne6+ {[%clk 0:00:05.8]} 34... Kh8 {[%clk
0:00:08.1]} 35. Bg7+ {[%clk 0:00:05.8]} 35... Kg8 {[%clk 0:00:08.6]} 36. Bh6+
{[%clk 0:00:06]} 36... Kh8 {[%clk 0:00:08.9]} 37. Bg7+ {[%clk 0:00:06.2]} 37...
Kg8 {[%clk 0:00:09.5]} 38. Bxf6+ {[%clk 0:00:05]} 1-0

[Event "*** Titled Tuesday Blitz"]
[Site "Chess.com"]
[Date "2020.11.10"]
[Round "5"]
[White "sofaceindisguise"]
[Black "petrpalachev"]
[Result "1-0"]
[WhiteElo "2684"]
[BlackElo "2720"]
[TimeControl "180+1"]
[EndTime "10:59:10 PST"]
[Termination "sofaceindisguise won on time"]

1. d4 {[%clk 0:03:00.9]} 1... Nf6 {[%clk 0:02:59.3]} 2. c4 {[%clk 0:03:01]} 2...
d6 {[%clk 0:03:00.2]} 3. Nf3 {[%clk 0:03:00.7]} 3... g6 {[%clk 0:02:58.8]} 4.
Nc3 {[%clk 0:03:01]} 4... Bf5 {[%clk 0:02:58.6]} 5. Qb3 {[%clk 0:02:55]} 5...
Qc8 {[%clk 0:02:48]} 6. Bg5 {[%clk 0:02:53.1]} 6... Bg7 {[%clk 0:02:47.4]} 7. e3
{[%clk 0:02:53.3]} 7... O-O {[%clk 0:02:45]} 8. Be2 {[%clk 0:02:53.5]} 8... Nc6
{[%clk 0:02:40.5]} 9. O-O {[%clk 0:02:52.6]} 9... e5 {[%clk 0:02:32.9]} 10. dxe5
{[%clk 0:02:51.6]} 10... Nxe5 {[%clk 0:02:25.1]} 11. Nxe5 {[%clk 0:02:51.1]}
11... dxe5 {[%clk 0:02:26]} 12. Rfd1 {[%clk 0:02:49.6]} 12... c6 {[%clk
0:02:25.4]} 13. Na4 {[%clk 0:02:44.9]} 13... Re8 {[%clk 0:02:18.8]} 14. Nc5
{[%clk 0:02:38.4]} 14... Ne4 {[%clk 0:02:13.5]} 15. Nxe4 {[%clk 0:02:38]} 15...
Bxe4 {[%clk 0:02:14.4]} 16. f3 {[%clk 0:02:33.2]} 16... Bf5 {[%clk 0:02:14.2]}
17. e4 {[%clk 0:02:33.5]} 17... Be6 {[%clk 0:02:14.1]} 18. Be3 {[%clk
0:02:29.3]} 18... Qc7 {[%clk 0:02:08.9]} 19. Qa3 {[%clk 0:02:25.3]} 19... Bf8
{[%clk 0:02:02.5]} 20. Qc3 {[%clk 0:02:24.5]} 20... b6 {[%clk 0:01:54.1]} 21. b4
{[%clk 0:02:11.7]} 21... a5 {[%clk 0:01:50.1]} 22. a3 {[%clk 0:02:10.9]} 22...
f6 {[%clk 0:01:41.7]} 23. c5 {[%clk 0:01:50.7]} 23... axb4 {[%clk 0:01:37.2]}
24. axb4 {[%clk 0:01:47.9]} 24... b5 {[%clk 0:01:34.4]} 25. Rd2 {[%clk 0:01:40]}
25... Rxa1+ {[%clk 0:01:28]} 26. Qxa1 {[%clk 0:01:40.9]} 26... Qb7 {[%clk
0:01:28.5]} 27. Rd3 {[%clk 0:01:32.9]} 27... Ra8 {[%clk 0:01:26.6]} 28. Ra3
{[%clk 0:01:32.8]} 28... Rxa3 {[%clk 0:01:25.9]} 29. Qxa3 {[%clk 0:01:33.7]}
29... Kf7 {[%clk 0:01:13.5]} 30. Kf2 {[%clk 0:01:28.9]} 30... h5 {[%clk
0:01:12.3]} 31. h4 {[%clk 0:01:28.3]} 31... Be7 {[%clk 0:01:10]} 32. g4 {[%clk
0:01:25.9]} 32... f5 {[%clk 0:01:06]} 33. g5 {[%clk 0:01:19.2]} 33... Bd8 {[%clk
0:00:20.9]} 34. exf5 {[%clk 0:01:13.5]} 34... Bxf5 {[%clk 0:00:15.9]} 35. Bd1
{[%clk 0:01:13.1]} 35... Qd7 {[%clk 0:00:15]} 36. Bb3+ {[%clk 0:01:13.1]} 36...
Be6 {[%clk 0:00:15.3]} 37. Qa2 {[%clk 0:01:07.7]} 37... Bxb3 {[%clk 0:00:13.2]}
38. Qxb3+ {[%clk 0:01:08.6]} 38... Qd5 {[%clk 0:00:11.6]} 39. Qa3 {[%clk
0:00:39.6]} 39... e4 {[%clk 0:00:05.2]} 40. fxe4 {[%clk 0:00:29.8]} 40... Qxe4
{[%clk 0:00:06.1]} 41. Qb3+ {[%clk 0:00:30.2]} 41... Ke7 {[%clk 0:00:02.8]} 42.
Qg8 {[%clk 0:00:28]} 42... Qf5+ {[%clk 0:00:02.1]} 43. Ke1 {[%clk 0:00:25.5]}
43... Kd7 {[%clk 0:00:01]} 44. Qg7+ {[%clk 0:00:21.5]} 1-0